Workbook

Sheet A
N3: Reiseregning (fra 22.06.2018) | V3: Reisenummer
H4: Etter og fornavn | S4: Fødselsnr. | V4: Ansattnr
H5: Privatadresse | Q5: Postnr. | S5: Poststed | V5: Klient
H6: Stilling | Q6: Bankkontonummer | V6: Firmakode
H7: Virksomhet | Q7: Avd/tj.sted | T7: Skattekommune | X7: Trekk % | AA7: Test på dato
H8: Regulativ | R8: Region | T8: Dato | U8: Kl. | W8: =IF(AND(AC28=1,AC34=10),"Har ikke krav på komp.tillegg",IF(AND(AC28>1,AC35=20),"Antall komp.till. er for høyt","")) ->  | AA8: =IF(AND(T9<>"",T10<>""),-1,1) -> 1 | AB8: Verdien 1 dersom fra og tildato er tomme
H9: Reisemål | S9: Utreise | V9: Ant. Kostdøgn | W9: =IF(AA18<0,"Oppgitt antall kostdøgn er for høyt","") ->  | AA9: =IF(OR($T$9<42005,$T$9>42369),0,1) -> 0 | AB9: hvis 1 er utreise dato dato innen 2015
H10: Reiseårsak | S10: Retur | V10: =IF(AA8=1,0,IF(T9>T10,"Sjekk dato",T10-T9+AA15)) -> 0 | W10: =IF(AA8<>1,IF(AND(AA11<2,AA11>0),"Satser for reise er fra 2015",""),"") ->  | AA10: =IF(OR($T$10<42005,$T$10>42369),0,1) -> 0 | AB10: hvis 1 er returreise innen 2015
H11: Reiseutlegg / godtgjøringer | Q11: Antall | R11: Sats | S11: Beløp | T11: Konto | U11: Koststed | V11: K-elem.4 | W11: K-elem.5 | X11: K-elem.6 | Y11: K-elem.7 | AA11: =SUM(AA9:AA10) -> 0 | AB11: hvis 2 er utreise og retur innen 2015
K12: 1041 | L12: OVERFØRT FRA BAKSIDEN | S12: =IF(B!M39=0,0,B!M39) -> 0
H13: Kostgodtgjøring uten overnatting, ulegitimert | K13: 1048/1085 | L13: Innland | M13: over 12 timer | R13: =IF(AND(Q13<>0,M13<>""),VLOOKUP(M13,'C'!C8:F10,4),"") ->  | S13: =IF(AND(Q13<>0,M13<>""),+Q13*R13,0) -> 0 | AA13: Beregner kostdøgn | AB13: =T10-T9 -> 0 | AC13: 1
K14: 1042 | L14: Utl. 6-12 timer | R14: =IF(M14<>0,((VLOOKUP(M14,'C'!$B$55:$D$219,3,FALSE))*0.5),"") ->  | S14: =IF(M14<>0,+Q14*R14,0) -> 0 | AA14: =IF(AB13>0,(U10-U9)*24,0) -> 0 | AB14: Antall timer inn i nytt døgn
K15: 1052 | L15: Utl. > 12 timer | R15: =IF(M15<>0,((VLOOKUP(M15,'C'!$B$55:$D$219,3,FALSE))),"") ->  | S15: =IF(M15<>0,+Q15*R15,0) -> 0 | AA15: =IF($AA$14>=6,1,0) -> 0 | AB15: Hvis 6 timer inn i nytt døgn, beregnes nytt kostdøgn
H16: Kostgodtgjøring ved overnatting, ulegitimert | K16: 1087/1075 | L16: Hotell innland | M16: =IF($Q$16>0,'C'!G48*$Q16+Q42,"") ->  | N16: =IF($Q16>0,(('C'!$F$12-'C'!$G$48)*$Q16)+R42,"") ->  | R16: =IF(Q16<>0,'C'!$F$12,"") ->  | S16: =IF(Q16<>0,+Q16*R16,0) -> 0 | AA16: =V10 -> 0 | AB16: Max. Beregnede kost døgn
K17: 1076/1075 | L17: Pensj. innland * | M17: =IF($Q$17>0,'C'!G15*$Q17+Q43,"") ->  | N17: =IF($Q17>0,(('C'!$F$12-'C'!$G$15)*$Q17)+R43,"") ->  | R17: =IF(Q17<>0,'C'!F12,"") ->  | S17: 0 | AA17: =SUM(Q13:Q22) -> 0 | AB17: sum oppgitte kostdøgn
K18: 1073/1075 | L18: Hyb./br./pr innl* | M18: =IF($Q$18>0,('C'!G16*$Q18)+Q44,"") ->  | N18: =IF($Q18>0,(('C'!$F$12-'C'!$G$16)*$Q18)+R44,"") ->  | R18: =IF(Q18<>0,'C'!F12,"") ->  | S18: 0 | AA18: =IF(Q13=1,0,AA16-AA17) -> 0 | AB18: Hvis negativt tall, Oppgitt for mange kostdøgn, skriver feilmelding
K19: 1052 | L19: Hotell utland | R19: =IF(M19<>0,VLOOKUP(M19,'C'!$B$55:$D$219,3,FALSE),"") ->  | S19: 0 | AA19: =IF($AA$14>=12,1,0) -> 0 | AB19: Hvis 12 timer inn i nytt døgn, beregnes nytt kostdøgn for kompetansetillegg
K20: 1052 | L20: Hotell utland | R20: =IF(M20<>0,VLOOKUP(M20,'C'!$B$55:$D$219,3,FALSE),"") ->  | S20: 0 | AA20: Hvis reisen varer mindre enn et døgn utbetales kompensasjonstillegg etter 12 timer
H21: =IF(Q21>0,159*Q21,0) -> 0 | I21: =IF(Q21>0,S21-H21,0) -> 0 | K21: 1076/1075 | L21: Pensj.utl. * | R21: =IF(M21<>0,VLOOKUP(M21,'C'!$B$55:$D$219,3,FALSE),"") ->  | S21: 0 | AA21: Komp. Tillegg < 1 døgn | AC21: kommentar | AD21: Hvis 12 timer inn i nytt døgn, får en nytt kompensasjonstilleggsdøgn ved reise under 12 timer
H22: =IF(Q22>0,88*Q22,0) -> 0 | I22: =IF(Q22>0,S22-H22,0) -> 0 | K22: 1073/1075 | L22: Hy./br./pr. utl *. | R22: =IF(M22<>0,VLOOKUP(M22,'C'!$B$55:$D$219,3,FALSE),"") ->  | S22: =IF(Q22<>0,Q22*R22,0) -> 0 | AA22: =T9 -> 00:00:00 | AB22: Startdato | AC22: =IF(AND(AC28=1,AC27>=12),1,0) -> 0 | AD22: Reisen varer under et døgn, men mer enn 12 timer = 1 (0 dersom mindre enn 12 timer)
L23: Innland: utgår fom 2015 | R23: =IF(Q23<>0,'C'!F6,"") ->  | S23: 0 | AC23: =IF(AND(#REF!=1,AC28>=12),1,0) -> 
H24: Nattillegg, uleg. | K24: =+'C'!A17 -> 1053 | L24: Innland | R24: =IF(Q24<>0,'C'!F17,"") ->  | S24: 0 | AA24: =$U$9*24 -> 0 | AB24: start tidspunkt | AC24: =AA25-AA24 -> 0 | AD24: Antall timer mellom start-tidspukt og slutt-tidspunkt
H25: Komp. Tillegg | K25: =+'C'!A13 -> 1214 | L25: Utland* | N25: =IF(Q25>0,IF(AC28=1,AC22,AC32),"") ->  | R25: =IF(Q25<>0,'C'!F13,"") ->  | S25: 0 | AA25: =$U$10*24 -> 0 | AB25: slutttidspunkt
H26: Eget skyssmiddel. Spesifiser reisen på baksiden. | K26: ='C'!A28 -> 1094/1096 | L26: Bil <10.000 km | M26: ='C'!C28*Q26 -> 0 | N26: ='C'!D28*Q26 -> 0 | R26: ='C'!F28 -> 3.9 | S26: =IF(Q26<>0,Q26*R26,0) -> 0
K27: 1202/1206 | L27: Bil utland <10.000 km | M27: ='C'!C30*Q27 -> 0 | N27: ='C'!D30*Q27 -> 0 | R27: ='C'!F30 -> 3.9 | S27: =IF(Q27<>0,Q27*R27,0) -> 0 | AA27: =IF(AC27>=12,"Ja","Nei") -> Nei | AB27: sum | AC27: =SUM(AC24:AC25) -> 0 | AD27: mer enn 12 timer totalt?
K28: ='C'!A32 -> 1093/1095 | L28: EL-bil <10.000 km | M28: ='C'!C32*Q28 -> 0 | N28: ='C'!D32*Q28 -> 0 | R28: ='C'!F32 -> 3.9 | S28: 0 | AB28: reisen varer antall døgn : | AC28: =$T$10-$T$9 -> 0
K29: 1203/1225 | L29: EL-bil utland <10.000 km | M29: ='C'!C34*Q29 -> 0 | N29: ='C'!D34*Q29 -> 0 | R29: ='C'!F34 -> 3.9 | S29: 0 | AB29: sum reg. døgn utland : | AC29: =SUM(Q19:Q22) -> 0 | AD29: Hvis reisen over et døgn utbetales kompensasjonstillegg etter 12 timer inn i nytt døgn
K30: ='C'!A27 -> 1045 | L30: Passasjertillegg (navn i merknadsfelt) | R30: =IF(Q30<>0,'C'!F27,"") ->  | S30: 0 | AB30: Registrerte komp. Tillegg | AC30: =Q25 -> 0
Q31: =B!F22 -> 0 | R31: =IF(Q31>0,'C'!F36,"") ->  | S31: 0 | AB31: Beregnet komp.till under et døgn | AC31: =AC22 -> 0 | AD31: =IF(Q25>AC31,"Bruker har ikke krav på komp.tillegg for reise under 1 døgn") -> FALSE
K32: =IF(AND(M32<>"",Q32<>""),VLOOKUP(M32,B!$E$71:$P$79,6,FALSE)) -> FALSE | L32: Annet | Q32: =SUMIF(B!G4:H14,M32,B!I4:I14) -> 0 | R32: =IF(AND(M32<>"",Q32<>0),VLOOKUP(M32,B!$E$71:$I$79,2,FALSE),"") ->  | S32: 0 | AB32: Beregnet komp.till over et døgn | AC32: =IF(AC29<=$V$10,(AC29-1)+AA19,0) -> -1 | AD32: =IF(AC32=0,"Bruker har registrert for mange døgn utland enn startdato/sluttdato for reise tilsier","ok") -> ok | AE32: DENNE MÅ SJEKKES - BLIR FEIL HVIS BRUKER OPPGIR FEILE DØGN
B33: sjekk at denne tabellen fungerer | H33: Opphold utover 28 døgn | K33: 1269 | L33: Kostgodtgjøring innland | R33: =IF(Q33<>0,'C'!$F$20,"") ->  | S33: 0
K34: 1058 | L34: Kostgodtgj. Utland | R34: =IF(M34<>0,VLOOKUP(M34,'C'!$B$55:$D$219,3,FALSE)*0.75,"") ->  | S34: =IF(M34<>0,+Q34*R34,0) -> 0 | AB34: Feilmelding komp tillegg under et døgn : | AC34: =IF($Q$25>0,IF(AC22>=1,0,10)) -> FALSE | AD34: =IF(AC34=10, "Feil - 10 Bruker har registrert komp tillegg men har ikke krav på under 1 døgn","") -> 
B35: Fratrekk for kost - satser | R35: =IF(Q35<>0,'C'!F17*0.75,"") ->  | S35: 0 | AB35: Feilmelding komp tillegg over et døgn : | AC35: =IF(AND($Q$25>0,$AC$29>=1),IF(AC32-Q25<0,20,0)) -> FALSE | AD35: =IF(AC35=20, "Feil 20 - Bruker har registrert komp tillegg men har registrert flere enn han har krav på","") -> 
B36: % utland | C36: 0.2 | D36: 0.3 | E36: 0.5 | H36: Andre godtgj. | S36: 0
B37: % Innland | C37: 0.2 | D37: 0.3 | E37: 0.5 | H37: TIL SAMMEN | R37: =SUM($S$43:$S$44,$S$47:$S$48) -> 0 | S37: =IF(SUM(S12:S36)<>0,SUM(S12:S36),0) -> 0
B38: Sats | C38: Frokost | D38: Lunch | E38: Middag | F38: Sum | H38: Trekk for kost | L38: Frokost | M38: Lunsj | N38: Middag | Q38: Trekkfri | R38: Trekkpl.
A39: =L13 -> Innland | B39: =IF(AND($Q$13>0,$M$13<>""),VLOOKUP($M$13,'C'!$C$8:$F$9,4),0) -> 0 | C39: =ROUND(IF(AND(B39<>0,L39>0),($C$37*754)*L39,0),0) -> 0 | D39: =ROUND(IF(M39>0,(754*D37),0),0) -> 0 | E39: =IF(N39>0,(754*E37),0) -> 0 | F39: =IF(SUM(C39:E39)>B39,B39,SUM(C39:E39)) -> 0 | H39: Uten overnatting | K39: 1085/1048 | S39: =-F39 -> 0
A40: =L14 -> Utl. 6-12 timer | B40: =IF(AND($Q$14<>0,$M$14<>""),VLOOKUP(M14,'C'!$B$55:$D$219,3,FALSE)*0.5,0) -> 0 | C40: =IF(L40>0,($B40*C$36*2),0) -> 0 | E40: =IF(N40>0,($B40*E$36*2),0) -> 0 | F40: =IF(SUM(C40:E40)>B40,B40,SUM(C40:E40)) -> 0 | H40: Utland 6-12 timer | K40: 1042 | S40: 0
A41: Utl. > 12 timer | B41: =IF(AND($Q$15<>0,$M$15<>""),VLOOKUP(M15,'C'!$B$55:$D$219,3,FALSE),0) -> 0 | C41: =IF(L41>0,($B41*C$36),0) -> 0 | D41: 0 | E41: 0 | F41: =SUM(C41:E41) -> 0 | H41: Utland > 12 timer | K41: 1052 | S41: =-F41 -> 0
A42: Hotell innland | B42: =IF(Q16<>"",'C'!$F$12,0) -> 0 | C42: =ROUND(IF(AND(L42>0,$B42<>0),($B42*C$37)*L42,0),0) -> 0 | D42: =ROUND(IF(AND(M42>0,$B42<>0),($B42*D$37)*M42,0),0) -> 0 | E42: =IF(AND(N42>0,$B42<>""),($B42*E$37)*N42,0) -> 0 | F42: =SUM(C42:E42) -> 0 | H42: Hotell innland | K42: 1087 | Q42: =$S42*Q80 -> 0 | R42: =$S42*R80 -> 0 | S42: 0
A43: Pensj. innland * | B43: =IF(Q17<>"",'C'!$F$12,0) -> 0 | C43: =ROUND(IF(AND(L43>0,$B43<>""),($B43*C$37)*L43,0),0) -> 0 | D43: =ROUND(IF(AND(M43>0,$B43<>""),($B43*D$37)*M43,0),0) -> 0 | E43: =IF(AND(N43>0,$B43<>""),($B43*E$37)*N43,0) -> 0 | F43: =SUM(C43:E43) -> 0 | H43: Pensjonat innl.* | K43: 1076/1075 | Q43: =$S43*Q70 -> 0 | R43: =$S43*R70 -> 0 | S43: 0
A44: Hyb./br./pr innl* | B44: =IF(Q18<>"",'C'!$F$12,0) -> 0 | C44: =ROUND(IF(AND(L44>0,$B44<>""),($B44*C$37)*L44,0),0) -> 0 | D44: =ROUND(IF(AND(M44>0,$B44<>""),($B44*D$37)*M44,0),0) -> 0 | E44: 0 | F44: 0 | H44: Hyb./br./pr. innl.* | K44: 1073/1075 | Q44: =$S44*Q71 -> 0 | R44: =$S44*R71 -> 0 | S44: 0
A45: Hotell utland | B45: =IF(AND($Q$19<>0,$M$19<>""),VLOOKUP(M19,'C'!$B$55:$D$219,3,FALSE),0) -> 0 | C45: =IF(AND(L45>0,C$36<>""),($B45*C$36)*L45,0) -> 0 | D45: =IF(AND(M45>0,D$36<>""),($B45*D$36)*M45,0) -> 0 | E45: =IF(AND(N45>0,E$36<>""),($B45*E$36)*N45,0) -> 0 | F45: =SUM(C45:E45) -> 0 | H45: Hotell utland | K45: 1052 | S45: 0
A46: Hotell utland | B46: =IF(AND($Q$20<>0,$M$20<>""),VLOOKUP(M20,'C'!$B$55:$D$219,3,FALSE),0) -> 0 | C46: =IF(AND(L46>0,C$36<>""),($B46*C$36)*L46,0) -> 0 | D46: =IF(AND(M46>0,D$36<>""),($B46*D$36)*M46,0) -> 0 | E46: =IF(AND(N46>0,E$36<>""),($B46*E$36)*N46,0) -> 0 | F46: =SUM(C46:E46) -> 0 | H46: Hotell utland | K46: 1052 | S46: =-F46 -> 0
A47: Pensj.utl. * | B47: =IF(AND($Q$21<>0,$M$21<>""),VLOOKUP(M21,'C'!$B$55:$D$219,3,FALSE),0) -> 0 | C47: =IF(AND(L47>0,C$36<>0),($B47*C$36)*L47,0) -> 0 | D47: 0 | E47: 0 | F47: 0 | H47: Pensjonat.utl.* | K47: 1076/1075 | Q47: =IF(S47<>0,$S47*Q78,"") ->  | R47: =IF(S47<>0,$S47*R78,"") ->  | S47: 0
A48: Hy./br./pr. utl *. | B48: =IF(AND($Q$22<>0,$M$22<>""),VLOOKUP(M22,'C'!$B$55:$D$219,3,FALSE),0) -> 0 | C48: 0 | D48: 0 | E48: 0 | F48: 0 | H48: Hybel./br./pr.utl. * | K48: 1073/1075 | Q48: =IF(S48<>0,$S48*Q79,"") ->  | R48: =IF(S48<>0,$S48*R79,"") ->  | S48: 0
B49: =IF(Q23<>"",'C'!$F$12,0) -> 0 | C49: =IF(AND(L49>0,$B49<>""),($B49*C$37)*L49,0) -> 0 | D49: =IF(AND(M49>0,$B49<>""),($B49*D$37)*M49,0) -> 0 | E49: =IF(AND(N49>0,$B49<>""),($B49*E$37)*N49,0) -> 0 | F49: 0 | H49: Sum reiseoppgjør | L49: =SUM(L39:L48) -> 0 | M49: =SUM(M39:M48) -> 0 | N49: 0 | O49: 0 | P49: 0 | S49: =IF(SUM(S37:S48)<>0,SUM(S37:S48),0) -> 0
H50: Annet trekk
H51: Reiseforskudd utbet.sted
H52: Totalsum (Trekkpliktige ytelser er merket med *) | S52: =IF(SUM(S49:S51)<>0,SUM(S49:S51),0) -> 0
H53: Utstederens underskrift | M53: Jeg samtykker i at ev. skyldig beløp kan trekkes i lønn | V53: Satsene og beregningene er tatt med for å gi en omtrentlig oversikt over hva som vil bli utbetalt. Det er de satsene og beregningene som ligger i lønnssystemet som vil bli brukt ved utbetalingen av reiseregningen. Utbetalingsbeløpet kan bli mindre pga. forskuddstrekk.
H55: Kontroll | L55: Dato | M55: Sign.
H57: Budsjett- disponering | L57: Dato | M57: Sign.
X59: 2016-01-01
I62: REGION | L62: ULEGITIMERT | U62: ANDRE FREMKOMSTMIDLER | Y62: REGULATIV
L63: KOSTGODTGJØRELSE | Y63: Tjenestereise
I64: Tromsø | L64: MED OVERNATTING | W64: ='C'!F39 -> 4 | Y64: Yrkesreise
W65: ='C'!#REF! ->  | Y65: Arbeidsreise
L66: 6-12 timer | N66: 8 - 12 timer | R66: SAP | W66: ='C'!F43 -> 4
L67: over 12 timer | N67: over 12 timer | W67: ='C'!F45 -> 1.7
W68: ='C'!#REF! -> 
K69: ='C'!F12 -> 754 | L69: Kostgodtjørelse | M69: Skattefri | N69: Skattepliktig | Q69: % skattefri | R69: % skpliktig | S69: Total | W69: ='C'!F50 -> 0
K70: =SUM(M70:N70) -> 754 | L70: =L17 -> Pensj. innland * | M70: ='C'!F15 -> 159 | N70: =$K$69-M70 -> 595 | Q70: =M70/K70 -> 0.2108753316 | R70: =N70/K70 -> 0.7891246684 | S70: =SUM(Q70:R70) -> 1 | W70: ='C'!F51 -> 0
K71: =SUM(M71:N71) -> 754 | L71: =L18 -> Hyb./br./pr innl* | M71: ='C'!F16 -> 88 | N71: =$K$69-M71 -> 666 | Q71: =M71/K71 -> 0.1167108753 | R71: =N71/K71 -> 0.8832891247 | S71: =SUM(Q71:R71) -> 1 | W71: ='C'!F52 -> 0
K72: 0.2 | L72: Frokost pensjonat | M72: =$M$70*K72 -> 31.8 | N72: =$N$70*K72 -> 119 | Q72: =SUM(M72:P72) -> 150.8 | W72: ='C'!F53 -> 0
K73: 0.3 | L73: Lunch pensjonat | M73: =$M$70*K73 -> 47.7 | N73: =$N$70*K73 -> 178.5 | Q73: =SUM(M73:P73) -> 226.2
K74: 0.5 | L74: Middag pensjonat | M74: 79.5 | N74: 297.5 | Q74: 377 | R74: =SUM(Q72:Q74) -> 754
K75: 0.2 | L75: Frokost brakke | M75: =$M$71*K75 -> 17.6 | N75: =$N$71*K75 -> 133.2 | Q75: 150.8 | W75: ='C'!F56 -> 0
K76: 0.3 | L76: Lunch brakke | M76: =$M$71*K76 -> 26.4 | N76: =$N$71*K76 -> 199.8 | Q76: 226.2
K77: 0.5 | L77: Middag brakke | M77: 44 | N77: 333 | Q77: 377 | R77: =SUM(Q75:Q77) -> 754
K78: =R21 ->  | L78: =L21 -> Pensj.utl. * | M78: =M70 -> 159 | N78: =IF(K78="","",K78-M78) ->  | Q78: =IF(K78="","",M78/K78) ->  | R78: =IF(K78="","",N78/K78) ->  | S78: =SUM(Q78:R78) -> 0
K79: =R22 ->  | L79: =L22 -> Hy./br./pr. utl *. | M79: =M71 -> 88 | N79: =IF(K79="","",K79-M79) ->  | Q79: =IF(K79="","",M79/K79) ->  | R79: =IF(K79="","",N79/K79) ->  | S79: =SUM(Q79:R79) -> 0
K80: 754 | L80: Hotell innland | M80: ='C'!G48 -> 569 | N80: =$K$69-M80 -> 185 | Q80: =M80/K80 -> 0.7546419098 | R80: =N80/K80 -> 0.2453580902 | S80: =SUM(Q80:R80) -> 1

Sheet B
A2: Reisespesifikasjon | J2: Reiseutlegg
A3: Dato | B3: Klokke slett | C3: Fra sted | E3: Til sted | F3: Klokke slett | G3: Type transportmiddel | I3: Km | J3: Valuta | K3: Beløp i valuta (el. NOK) | L3: Kurs | M3: Beløp | N3: Melding | P3: Sats | Q3: Skatte-fritt | R3: Skatte-pliktig | S3: Km | T3: Sum km godtgj. | U3: Kontr | V3: Km
M4: =IF(P4>0,T4,IF(AND(K4<>0,L4<>0),K4*L4,K4)) -> 0 | N4: =IF(AND(U4>4,I4=""),"Fyll ut ant. km","") ->  | P4: =IF(G4="",0,VLOOKUP($G4,$E$62:$F$79,2,FALSE)) -> 0 | Q4: =IF(H4="",0,VLOOKUP($G4,$E$62:$F$79,2,FALSE)) -> 0 | R4: 0 | S4: =IF(U4>4,I4,0) -> 0 | T4: =P4*S4 -> 0 | U4: =IF(G4="",0,VLOOKUP($G4,$E$62:$I$79,5,FALSE)) -> 0 | V4: =IF(U4>4,I4,0) -> 0
M5: =IF(P5>0,T5,IF(AND(K5<>0,L5<>0),K5*L5,K5)) -> 0 | N5: =IF(AND(U5>4,I5=""),"Fyll ut ant. km","") ->  | P5: =IF(G5="",0,VLOOKUP($G5,$E$62:$F$79,2,FALSE)) -> 0 | Q5: =IF(H5="",0,VLOOKUP($G5,$E$62:$F$79,2,FALSE)) -> 0 | R5: =IF(I5="",0,VLOOKUP($G5,$E$62:$F$79,2,FALSE)) -> 0 | S5: =IF(U5>4,I5,0) -> 0 | T5: =P5*S5 -> 0 | U5: =IF(G5="",0,VLOOKUP($G5,$E$62:$I$79,5,FALSE)) -> 0 | V5: =IF(U5>4,I5,0) -> 0
M6: 0 | P6: 0 | Q6: 0 | R6: 0 | S6: 0 | T6: 0 | U6: 0 | V6: 0
M7: 0 | P7: 0 | Q7: 0 | R7: 0 | S7: 0 | T7: 0 | U7: 0 | V7: 0
M8: 0 | P8: 0 | Q8: 0 | R8: 0 | S8: 0 | T8: 0 | U8: 0 | V8: 0
M9: 0 | P9: 0 | Q9: 0 | R9: 0 | S9: 0 | T9: 0 | U9: 0 | V9: 0
M10: 0 | P10: 0 | Q10: 0 | R10: 0 | S10: 0 | T10: 0 | U10: 0 | V10: 0
M11: 0 | P11: 0 | Q11: 0 | R11: 0 | S11: 0 | T11: 0 | U11: 0 | V11: 0
M12: 0 | P12: 0 | Q12: 0 | R12: 0 | S12: 0 | T12: 0 | U12: 0 | V12: 0
M13: 0 | P13: 0 | Q13: 0 | R13: 0 | S13: 0 | T13: 0 | U13: 0 | V13: 0
M14: 0 | P14: 0 | Q14: 0 | R14: 0 | S14: 0 | T14: 0 | U14: 0 | V14: 0
L15: Delsum (ekskl. km godtgj.) | M15: =IF(S15>0,SUM(M4:M14)-T15,SUM(M4:M14)) -> 0 | S15: =SUM(S4:S14) -> 0 | T15: =SUM(T4:T14) -> 0 | U15: =SUM(M4:M14) -> 0 | V15: =SUM(V4:V14) -> 0
A16: Dato: | C16: Hjemmel for bruk av bil gitt av: | T16: Sum km godtgj. | U16: =T15 -> 0
T17: Sum (eksk. km godtgj.) | U17: =U15-U16 -> 0
D18: Sum km bil <10.000 km | F18: =SUMIF($G$4:$G$14,E67,$I$4:$I$14) -> 0 | G18: Sum km bil utland <10.000 km | I18: =SUMIF($G$4:$G$14,E71,$I$4:$I$14) -> 0 | J18: Sum km Moped <125ccm | M18: =SUMIF($G$4:$G$14,E76,$I$4:$I$14) -> 0
D19: Sum km bil >10.000 km | F19: =SUMIF($G$4:$G$14,E68,$I$4:$I$14) -> 0 | G19: Sum km bil utland >10.000 km | I19: =SUMIF($G$4:$G$14,E72,$I$4:$I$14) -> 0 | J19: Sum km Motorsykkel >125 ccm | M19: =SUMIF($G$4:$G$14,E77,$I$4:$I$14) -> 0 | T19: Sum annet | U19: =SUM(M18:M21) -> 0
D20: Sum km EL-bil <10.000 km | F20: =SUMIF($G$4:$G$14,E69,$I$4:$I$14) -> 0 | G20: Sum km EL-bil utland <10.000 km | I20: =SUMIF($G$4:$G$14,E73,$I$4:$I$14) -> 0 | J20: Sum km Båt < 50 hk | M20: =SUMIF($G$4:$G$14,E78,$I$4:$I$14) -> 0 | T20: Sum utland | U20: =SUM(I18:I21) -> 0
D21: Sum km EL-bil > 10.000 km | F21: =SUMIF($G$4:$G$14,E70,$I$4:$I$14) -> 0 | G21: Sum km EL-bil utland >10.000 km | I21: =SUMIF($G$4:$G$14,E74,$I$4:$I$14) -> 0 | J21: Sum km Båt > 50hk | M21: =SUMIF($G$4:$G$14,E79,$I$4:$I$14) -> 0 | T21: Totalt | U21: =SUM(U19:U20) -> 0
D22: Sum km bil Hjem-arbeid | F22: =SUMIF($G$4:$G$14,E75,$I$4:$I$14) -> 0 | G22: Sum passasjertillegg | I22: =SUMIF($G$4:$G$14,E66,$I$4:$I$14) -> 0 | O22: =SUMIF($G$4:$G$14,#REF!,$I$4:$I$14) -> 0
A24: Utlegg til overnatting, mat, bompenger m.m. | J24: Valuta eller NOK
A25: Dato | B25: Spesifikasjon (Dersom du bor på hotell, skal navn og adr. oppgis) | I25: Papir- kvittering | J25: Valuta | K25: Beløp i valuta eller NOK | L25: Kurs | M25: Beløp
M26: =IF(AND(K26<>0,L26<>0),K26*L26,K26) -> 0
M27: =IF(AND(K27<>0,L27<>0),K27*L27,K27) -> 0
M28: 0
M29: 0
M30: 0
M31: 0
M32: 0
M33: 0
M34: 0
M35: 0
M36: 0
L37: Delsum | M37: =IF(SUM(M26:M36)<>0,SUM(M26:M36),0) -> 0
D39: Reiseutlegg - overføres automatisk til forsiden | L39: Sum | M39: =IF(OR(M15<>0,M37<>0,M48<>0),M15+M37+M48,0) -> 0
A42: Betalt av arbeidsgiver (beløp må oppgis som negativt tall, da dette kommer til fratrekk på reiseregning) | J42: Fremmed valuta
A43: Dato | B43: Spesifikasjon | J43: Valuta | K43: Beløp i valuta eller NOK | L43: Kurs | M43: Beløp
M44: =IF(AND(K44<>0,L44<>0),K44*L44,K44) -> 0
M45: =IF(AND(K45<>0,L45<>0),K45*L45,K45) -> 0
M46: =IF(AND(K46<>0,L46<>0),K46*L46,K46) -> 0
A48: Overnatting (Navn på og sted for hotell, pensjonat e.a. (ikke privat).) | L48: Delsum | M48: =SUM(M44:M46) -> 0
A49: Dersom navn og sted på overnattingsstedet ikke oppgis, vil det bli trukket skatt for det beløpet som overstiger Skattedirektoratets forskuddssatser for hybel/brakke med kokemuligheter.
A52: Merknader (Navn på passasjerer må oppgis her.)
A61: Tidsintervall | B61: Kontroll | C61: JA/NEI | D61: Kontroll | E61: Plukkliste transp.type | F61: Sats bil | G61: Skattefritt | H61: Skattepliktig | I61: Kontroll | J61: TT-kode
D62: 1 | E62: Taxi | F62: 0 | I62: 1
A63: 5-9 timer | C63: Ja | D63: 2 | E63: Fly | F63: 0 | I63: 2
A64: 9-12 timer | C64: Nei | D64: 3 | E64: Tog | F64: 0 | I64: 3
A65: over 12 timer | D65: 4 | E65: Buss | F65: 0 | I65: 4
D66: 5 | E66: Passasjer | F66: ='C'!F27 -> 1 | I66: 5
D67: 6 | E67: Bil <10.000km | F67: ='C'!F28 -> 3.9 | G67: ='C'!C28 -> 3.5 | H67: ='C'!$D28 -> 0.4 | I67: 6 | J67: ='C'!A28 -> 1094/1096
D68: 7 | E68: Bil >10.000km | F68: ='C'!$F$29 -> 3.9 | G68: ='C'!C29 -> 3.5 | H68: ='C'!$D29 -> 0 | I68: 7 | J68: ='C'!A29 -> 1097
D69: 8 | E69: EL-bil <10.000km | F69: ='C'!F32 -> 3.9 | G69: ='C'!C32 -> 3.5 | H69: ='C'!D32 -> 0.4 | I69: 8 | J69: ='C'!A32 -> 1093/1095
D70: 9 | E70: EL-bil >10.000km | F70: ='C'!F33 -> 3.9 | G70: ='C'!C33 -> 3.5 | H70: ='C'!D33 -> 0.4 | I70: 9 | J70: ='C'!A33 -> 1221/1223
D71: 10 | E71: Bil utland <10.000km | F71: ='C'!F30 -> 3.9 | G71: ='C'!C30 -> 3.5 | H71: ='C'!D30 -> 0.4 | I71: 10 | J71: ='C'!A30 -> 1202/1206
D72: 11 | E72: Bil utland >10.000km | F72: ='C'!F31 -> 3.9 | G72: ='C'!C31 -> 3.5 | H72: ='C'!D31 -> 0 | I72: 11 | J72: ='C'!A31 -> 1208
D73: 12 | E73: EL-bil utland <10.000km | F73: ='C'!F34 -> 3.9 | G73: ='C'!C34 -> 3.5 | H73: ='C'!D34 -> 0.4 | I73: 12 | J73: ='C'!A34 -> 1203/1225
D74: 13 | E74: El_bil utland >10.000km | F74: ='C'!F35 -> 3.9 | G74: ='C'!C35 -> 3.5 | H74: ='C'!D35 -> 0 | I74: 13 | J74: ='C'!A35 -> 1222
D75: 14 | E75: Bil hjem-arbeid | F75: ='C'!F36 -> 1.6 | G75: ='C'!C36 -> 1.6 | H75: ='C'!D36 -> 0 | I75: 14 | J75: ='C'!A36 -> 1094
D76: 15 | E76: Moped <125 ccm | F76: ='C'!F37 -> 1.6 | G76: ='C'!C37 -> 1.6 | H76: ='C'!D37 -> 0 | I76: 15 | J76: ='C'!A37 -> 1061
D77: 16 | E77: Motorsykkel >125 ccm | F77: ='C'!F38 -> 2.95 | G77: ='C'!C38 -> 2.95 | H77: ='C'!D38 -> 0 | I77: 16 | J77: ='C'!A38 -> 1063
D78: 17 | E78: Båt <50hk | F78: ='C'!F39 -> 4 | G78: ='C'!C39 -> 4 | H78: ='C'!D39 -> 0 | I78: 17 | J78: ='C'!A39 -> 1067
D79: 18 | E79: Båt >50hk | F79: ='C'!F40 -> 7.5 | G79: ='C'!C40 -> 7.5 | H79: ='C'!D40 -> 0 | I79: 18 | J79: ='C'!A40 -> 1068

Sheet C
A5: TT-koder | B5: SATSTYPE | F5: Sats FOM 22.06.18 | G5: Sats FOM 22.06.18 | H5: Maks % av godtgjørelse | I5: Kommentarer, endringer fra 2014 til 2016
A6: utgår | B6: Administrativ forpleining (utgått 2015) | F6: 0 | I6: Adminstrativ forpleining innland utgår fom 2015
A7: utgår | B7: Administrativ forpleining utland (utgått 2016) | F7: 0 | I7: Adminstrativ forpleining utland (kr 100 - fom 2015, utgår fra 1/1-2016)
A8: 1048 | B8: Innland, kostgodtgj. u/overnatting | C8: 6-12 timer | F8: 297 | G8: 297 | I8: Innenlands kostgodgjøring endret til 6 til 12 timer i 2015, ny sats 22.06.18
A9: 1085 | B9: Innland, kostgodgj. u/overnatting | C9: over 12 timer | F9: 552 | G9: 552 | I9: over 12 timer, ny sats fra 22.06.18
A10: utgår | B10: Innland, kostgodgj. u/overnatting (utgått 2015) | F10: 0 | I10: Kostgodtgjøring innland 9-12 timer utgår i 2015
B11: Grense for legitimerte overnattingsutgifter, innland | F11: 1800
A12: 1087 | B12: Innland, over 12 kostgodtgj m/overnatting | C12: over 12 timer | F12: 754 | G12: 754 | I12: ny sats 22.06.18
A13: 1214 | B13: Kompensasjonstillegg, utland | F13: 515 | G13: 515 | I13: Per 1/1-2017 er dette kr. 491,- Ny sats 22.06.18
A15: 1076 | B15: Trekkfri kostgodtgjørelse for pensjonat | F15: 159 | G15: 159 | I15: Her er kun kr. 159 (fra 2018) skattefritt, resten må det skattes av (gjelder både innland og utland)
A16: 1073 | B16: Trekkfri kostgodtgjørelse hybel/brakke/priv | F16: 88 | G16: 88 | I16: Her er kun kr. 88 (fra 2018) skattefritt, resten må det skattes av (gjelder både innland og utland)
A17: 1053 | B17: Innland, ulegitimertnattillegg | F17: 430 | G17: 430
B18: Innland, kostgodtgjøring beordring 0-28 døgn | F18: 754 | G18: 754 | I18: Dette brukes ikke, men UiB bruker også kost utover 28 døgn (75%) - feltarbeid
B19: Innland, ulegitimert overnatting beordring 0-28 døgn | F19: 430 | G19: 430 | I19: Dette brukes ikke, men UiB bruker også natt-tillegg utover 28 døgn (90%)-feltarbeid
A20: 1269 | B20: Innland, kostgodtgjørelse beording over 28 døgn | F20: 195 | I20: 9.3 Særavtale for reiser utenlands for statens regning, (kostgodtgjørelse reduseres med 25% av det landet de landet de er i)
B21: Trekk, frokost innland dagreise | F21: =ROUND(20%*754,0) -> 151 | G21: 20% av 754
B22: Trekk, lunsj, innland dagreise | F22: =ROUND(30%*754,0) -> 226 | G22: 30% av 754
B23: Trekk, middag, innland dagreise | F23: =50%*754 -> 377 | G23: 50% av 754
B24: Trekk prosent frokost innland | F24: 0.2 | G24: 0.2
B25: Trekk prosent lunsj innland | F25: 0.3 | G25: 0.3
B26: Trekk prosent middag innland | F26: 0.5 | G26: 0.5
A27: 1045 | B27: Passasjertillegg | C27: Skattefritt | D27: Skattepliktig | F27: 1
A28: 1094/1096 | B28: Bil km-godtgjørelse 0-10000 km | C28: 3.5 | D28: 0.4 | F28: 3.9 | G28: 3.9
A29: 1097 | B29: Bil km-godtgjørelse over 10000 km * | C29: 3.5 | D29: 0 | F29: 3.9 | G29: 3.9
A30: 1202/1206 | B30: Bil utland: kilometergodtgjørelse < 10.000 | C30: 3.5 | D30: 0.4 | F30: 3.9 | G30: 3.9
A31: 1208 | B31: Bil utland: kilometergodtgjørelse > 10.000 | C31: 3.5 | F31: 3.9 | G31: 3.9
A32: 1093/1095 | B32: EL-bil km.godtgj. 0-10.000 km | C32: 3.5 | D32: 0.4 | F32: 3.9 | G32: 3.9
A33: 1221/1223 | B33: EL-bil km.godtgj. > 10.000 km | C33: 3.5 | D33: 0.4 | F33: 3.9 | G33: 3.9
A34: 1203/1225 | B34: EL-bil utland km.godtgj. 0-10.000 km | C34: 3.5 | D34: 0.4 | F34: 3.9 | G34: 3.9
A35: 1222 | B35: EL-bil utland km.godtgj. > 10.000 km | C35: 3.5 | D35: 0 | F35: 3.9 | G35: 3.9
A36: 1094 | B36: Bil hjem - arbeid | C36: =F36 -> 1.6 | D36: 0 | F36: 1.6 | I36: Brukes ikke
A37: 1061 | B37: Moped < 125 ccm km. Godtgjørelse | C37: =F37 -> 1.6 | D37: 0 | F37: 1.6
A38: 1063 | B38: Motorsykkel >125 ccm km.godtgj. | C38: =F38 -> 2.95 | D38: 0 | F38: 2.95
A39: 1067 | B39: Båt < 50 hk km.godtgj. | C39: =F39 -> 4 | D39: 0 | F39: 4
A40: 1068 | B40: Båt > 50 hk km.godtgj. | C40: =F40 -> 7.5 | D40: 0 | F40: 7.5
A41: 1200/1205 | B41: Bil kilometergodtgjørelse i Tromsø 0-10.000 | C41: 3.5 | D41: 0.5 | F41: 4
A42: 1201/1224 | B42: Bil kilometergodtgjørelse Tromsø > 10.000 | C42: 3.5 | D42: 0.5 | F42: 4
A43: 1066 | B43: Andre fremkomstmidler km.godtgj. | C43: =F43 -> 4 | F43: 4
A44: 1065 | B44: Tillegg: Skogs- og anleggsvei | F44: 1
B45: Tillegg: Snøscooter | F45: 1.7 | I45: utgikk 2016
A46: 1064 | B46: Tillegg: Tilhenger | F46: 7.5
A47: 1062 | B47: Tillegg | F47: 1
A48: 1087 | B48: Trekkfrie satser hotell | G48: 569 | I48: Ny sats 01.01.18
E50: 1065
E51: 1062
E52: 1066
J54: Pensjon utland | M54: Hybel/brakke/privat innkv. Utland
A55: 1 | C55: Makssatser Natt (utgått) | D55: Kost | E55: Nye satser fra 22.06.18 | J55: TT-kode | K55: Skattefritt | L55: Skattepliktig | M55: TT-kode | N55: Skattefritt | O55: Skattepliktig
A56: 117 | B56: Europa: | J56: 1076/1075 | M56: 1073/1075
A57: 118 | B57: Albania | C57: 1520 | D57: 330 | E57: 330 | J57: 1076/1075 | K57: 159 | L57: =D57-K57 -> 171 | M57: 1073/1075 | N57: 88 | O57: =D57-N57 -> 242
A58: 119 | B58: Belgia | C58: 2100 | D58: 920 | E58: 920 | J58: 1076/1075 | K58: 159 | L58: 761 | M58: 1073/1075 | N58: 88 | O58: 832
A59: 120 | B59: Bosnia og Hercegovina | C59: 800 | D59: 480 | E59: 480 | J59: 1076/1075 | K59: 159 | L59: 321 | M59: 1073/1075 | N59: 88 | O59: 392
A60: 121 | B60: Bulgaria | C60: 900 | D60: 520 | E60: 520 | J60: 1076/1075 | K60: 159 | L60: 361 | M60: 1073/1075 | N60: 88 | O60: 432
A61: 122 | B61: Danmark | C61: 1700 | D61: 1190 | E61: 1190 | J61: 1076/1075 | K61: 159 | L61: 1031 | M61: 1073/1075 | N61: 88 | O61: 1102
A62: 123 | B62: København | C62: 1750 | D62: 1190 | E62: 1190 | J62: 1076/1075 | K62: 159 | L62: 1031 | M62: 1073/1075 | N62: 88 | O62: 1102
A63: 124 | B63: Estland | C63: 1000 | D63: 660 | E63: 660 | J63: 1076/1075 | K63: 159 | L63: 501 | M63: 1073/1075 | N63: 88 | O63: 572
A64: 125 | B64: Finland | C64: 1500 | D64: 950 | E64: 950 | J64: 1076/1075 | K64: 159 | L64: 791 | M64: 1073/1075 | N64: 88 | O64: 862
A65: 126 | B65: Frankrike | C65: 1600 | D65: 750 | E65: 750 | J65: 1076/1075 | K65: 159 | L65: 591 | M65: 1073/1075 | N65: 88 | O65: 662
A66: 127 | B66: Paris | C66: 2800 | D66: 930 | E66: 930 | J66: 1076/1075 | K66: 159 | L66: 771 | M66: 1073/1075 | N66: 88 | O66: 842
A67: 128 | B67: Hellas | C67: 1100 | D67: 770 | E67: 770 | J67: 1076/1075 | K67: 159 | L67: 611 | M67: 1073/1075 | N67: 88 | O67: 682
A68: 129 | B68: Hviterussland | C68: 1200 | D68: 370 | E68: 370 | J68: 1076/1075 | K68: 159 | L68: 211 | M68: 1073/1075 | N68: 88 | O68: 282
A69: 130 | B69: Irland | C69: 1700 | D69: 890 | E69: 890 | J69: 1076/1075 | K69: 159 | L69: 731 | M69: 1073/1075 | N69: 88 | O69: 802
A70: 131 | B70: Island | C70: 2100 | D70: 1240 | E70: 1240 | J70: 1076/1075 | K70: 159 | L70: 1081 | M70: 1073/1075 | N70: 88 | O70: 1152
B71: Italia | C71: 2100 | D71: 760 | E71: 760 | J71: 1076/1075 | K71: 159 | L71: 601 | M71: 1073/1075 | N71: 88 | O71: 672
B72: Kosovo | C72: 700 | D72: 370 | E72: 370 | J72: 1076/1075 | K72: 159 | L72: 211 | M72: 1073/1075 | N72: 88 | O72: 282
A73: 132 | B73: Kroatia | C73: 1750 | D73: 600 | E73: 600 | J73: 1076/1075 | K73: 159 | L73: 441 | M73: 1073/1075 | N73: 88 | O73: 512
B74: Kypros | C74: 1800 | D74: 740 | E74: 740 | J74: 1076/1075 | K74: 159 | L74: 581 | M74: 1073/1075 | N74: 88 | O74: 652
A75: 133 | B75: Latvia | C75: 1000 | D75: 670 | E75: 670 | J75: 1076/1075 | K75: 159 | L75: 511 | M75: 1073/1075 | N75: 88 | O75: 582
A76: 134 | B76: Liechtenstein | C76: 1900 | D76: 1290 | E76: 1290 | J76: 1076/1075 | K76: 159 | L76: 1131 | M76: 1073/1075 | N76: 88 | O76: 1202
A77: 135 | B77: Litauen | C77: 1000 | D77: 520 | E77: 520 | J77: 1076/1075 | K77: 159 | L77: 361 | M77: 1073/1075 | N77: 88 | O77: 432
A78: 136 | B78: Luxembourg | C78: 1600 | D78: 920 | E78: 920 | J78: 1076/1075 | K78: 159 | L78: 761 | M78: 1073/1075 | N78: 88 | O78: 832
A79: 137 | B79: Makedonia | C79: 1100 | D79: 450 | E79: 450 | J79: 1076/1075 | K79: 159 | L79: 291 | M79: 1073/1075 | N79: 88 | O79: 362
A80: 138 | B80: Malta | C80: 1650 | D80: 690 | E80: 690 | J80: 1076/1075 | K80: 159 | L80: 531 | M80: 1073/1075 | N80: 88 | O80: 602
A81: 139 | B81: Moldova | C81: 1400 | D81: 340 | E81: 340 | J81: 1076/1075 | K81: 159 | L81: 181 | M81: 1073/1075 | N81: 88 | O81: 252
A82: 140 | B82: Monaco | C82: 2800 | D82: 1080 | E82: 1080 | J82: 1076/1075 | K82: 159 | L82: 921 | M82: 1073/1075 | N82: 88 | O82: 992
A83: 141 | B83: Montenegro | C83: 1300 | D83: 570 | E83: 570 | J83: 1076/1075 | K83: 159 | L83: 411 | M83: 1073/1075 | N83: 88 | O83: 482
A84: 142 | B84: Nederland | C84: 1500 | D84: 770 | E84: 770 | J84: 1076/1075 | K84: 159 | L84: 611 | M84: 1073/1075 | N84: 88 | O84: 682
A85: 143 | B85: Polen | C85: 1900 | D85: 600 | E85: 600 | J85: 1076/1075 | K85: 159 | L85: 441 | M85: 1073/1075 | N85: 88 | O85: 512
A86: 144 | B86: Portugal | C86: 2500 | D86: 620 | E86: 620 | J86: 1076/1075 | K86: 159 | L86: 461 | M86: 1073/1075 | N86: 88 | O86: 532
A87: 145 | B87: Romania | C87: 1500 | D87: 470 | E87: 470 | J87: 1076/1075 | K87: 159 | L87: 311 | M87: 1073/1075 | N87: 88 | O87: 382
A88: 146 | B88: Russland | C88: 1600 | D88: 510 | E88: 510 | J88: 1076/1075 | K88: 159 | L88: 351 | M88: 1073/1075 | N88: 88 | O88: 422
A89: 147 | B89: Moskva | C89: 3200 | D89: 710 | E89: 710 | J89: 1076/1075 | K89: 159 | L89: =D89-K89 -> 551 | M89: 1073/1075 | N89: 88 | O89: =D89-N89 -> 622
A90: 148 | B90: St. Petersburg | C90: 1600 | D90: 590 | E90: 590 | J90: 1076/1075 | K90: 159 | L90: 431 | M90: 1073/1075 | N90: 88 | O90: 502
A91: 149 | B91: Serbia | C91: 1500 | D91: 510 | E91: 510 | J91: 1076/1075 | K91: 159 | L91: 351 | M91: 1073/1075 | N91: 88 | O91: 422
A92: 151 | B92: Slovakia | C92: 1000 | D92: 650 | E92: 650 | J92: 1076/1075 | K92: 159 | L92: 491 | M92: 1073/1075 | N92: 88 | O92: 562
A93: 152 | B93: Slovenia | C93: 1900 | D93: 670 | E93: 670 | J93: 1076/1075 | K93: 159 | L93: 511 | M93: 1073/1075 | N93: 88 | O93: 582
A94: 153 | B94: Spania | C94: 1700 | D94: 720 | E94: 720 | J94: 1076/1075 | K94: 159 | L94: 561 | M94: 1073/1075 | N94: 88 | O94: 632
A95: 154 | B95: Storbritannia | C95: 1400 | D95: 750 | E95: 750 | J95: 1076/1075 | K95: 159 | L95: 591 | M95: 1073/1075 | N95: 88 | O95: 662
A96: 155 | B96: London | C96: 2400 | D96: 900 | E96: 900 | J96: 1076/1075 | K96: 159 | L96: 741 | M96: 1073/1075 | N96: 88 | O96: 812
A97: 156 | B97: Sveits | C97: 1450 | D97: 1070 | E97: 1070 | J97: 1076/1075 | K97: 159 | L97: 911 | M97: 1073/1075 | N97: 88 | O97: 982
A98: 157 | B98: Genève | C98: 4000 | D98: 1270 | E98: 1270 | J98: 1076/1075 | K98: 159 | L98: 1111 | M98: 1073/1075 | N98: 88 | O98: 1182
A99: 158 | B99: Zürich | C99: 3000 | D99: 1290 | E99: 1290 | J99: 1076/1075 | K99: 159 | L99: 1131 | M99: 1073/1075 | N99: 88 | O99: 1202
A100: 159 | B100: Sverige | C100: 1900 | D100: 820 | E100: 820 | J100: 1076/1075 | K100: 159 | L100: 661 | M100: 1073/1075 | N100: 88 | O100: 732
A101: 160 | B101: Tjekkiske republikk | C101: 1800 | D101: 540 | E101: 540 | J101: 1076/1075 | K101: 159 | L101: 381 | M101: 1073/1075 | N101: 88 | O101: 452
A102: 161 | B102: Tyskland | C102: 1900 | D102: 760 | E102: 760 | J102: 1076/1075 | K102: 159 | L102: 601 | M102: 1073/1075 | N102: 88 | O102: 672
A103: 162 | B103: Berlin | C103: 2250 | D103: 850 | E103: 850 | J103: 1076/1075 | K103: 159 | L103: 691 | M103: 1073/1075 | N103: 88 | O103: 762
A104: 163 | B104: Ukraina | C104: 1400 | D104: 430 | E104: 430 | J104: 1076/1075 | K104: 159 | L104: 271 | M104: 1073/1075 | N104: 88 | O104: 342
A105: 164 | B105: Ungarn | C105: 2000 | D105: 590 | E105: 590 | J105: 1076/1075 | K105: 159 | L105: 431 | M105: 1073/1075 | N105: 88 | O105: 502
A106: 165 | B106: Østerrike | C106: 1400 | D106: 830 | E106: 830 | J106: 1076/1075 | K106: 159 | L106: 671 | M106: 1073/1075 | N106: 88 | O106: 742
A107: 166 | B107: Wien | C107: 1900 | D107: 810 | E107: 810 | J107: 1076/1075 | K107: 159 | L107: 651 | M107: 1073/1075 | N107: 88 | O107: 722
B108: Afrika: | J108: 1076/1075 | K108: 159 | L108: -159 | M108: 1073/1075 | N108: 88 | O108: -88
B109: Algerie | C109: 1900 | D109: 550 | E109: 550 | J109: 1076/1075 | K109: 159 | L109: =D109-K109 -> 391 | M109: 1073/1075 | N109: 88 | O109: =D109-N109 -> 462
A110: 3 | B110: Angola | C110: 2650 | D110: 1320 | E110: 1320 | J110: 1076/1075 | K110: 159 | L110: 1161 | M110: 1073/1075 | N110: 88 | O110: 1232
A111: 4 | B111: Benin | C111: 1550 | D111: 670 | E111: 670 | J111: 1076/1075 | K111: 159 | L111: 511 | M111: 1073/1075 | N111: 88 | O111: 582
A112: 5 | B112: Botswana | C112: 1500 | D112: 420 | E112: 420 | J112: 1076/1075 | K112: 159 | L112: 261 | M112: 1073/1075 | N112: 88 | O112: 332
A113: 6 | B113: Burundi | C113: 1000 | D113: 430 | E113: 430 | J113: 1076/1075 | K113: 159 | L113: 271 | M113: 1073/1075 | N113: 88 | O113: 342
B114: Egypt | C114: 2400 | D114: 280 | E114: 280 | J114: 1076/1075 | K114: 159 | L114: 121 | M114: 1073/1075 | N114: 88 | O114: 192
A115: 7 | B115: Elfenbenskysten | C115: 1620 | D115: 710 | E115: 710 | J115: 1076/1075 | K115: 159 | L115: 551 | M115: 1073/1075 | N115: 88 | O115: 622
A116: 8 | B116: Eritrea | C116: 1050 | D116: 700 | E116: 700 | J116: 1076/1075 | K116: 159 | L116: 541 | M116: 1073/1075 | N116: 88 | O116: 612
A117: 9 | B117: Etiopia | C117: 2000 | D117: 450 | E117: 450 | J117: 1076/1075 | K117: 159 | L117: 291 | M117: 1073/1075 | N117: 88 | O117: 362
A118: 10 | B118: Ghana | C118: 2300 | D118: 630 | E118: 630 | J118: 1076/1075 | K118: 159 | L118: 471 | M118: 1073/1075 | N118: 88 | O118: 542
A119: 11 | B119: Kamerun | C119: 1800 | D119: 700 | E119: 700 | J119: 1076/1075 | K119: 159 | L119: 541 | M119: 1073/1075 | N119: 88 | O119: 612
A120: 12 | B120: Kenya | C120: 1600 | D120: 650 | E120: 650 | J120: 1076/1075 | K120: 159 | L120: 491 | M120: 1073/1075 | N120: 88 | O120: 562
A121: 13 | B121: Lesotho | C121: 1000 | D121: 340 | E121: 340 | J121: 1076/1075 | K121: 159 | L121: =D121-K121 -> 181 | M121: 1073/1075 | N121: 88 | O121: =D121-N121 -> 252
A122: 14 | B122: Madagaskar | C122: 900 | D122: 350 | E122: 350 | J122: 1076/1075 | K122: 159 | L122: 191 | M122: 1073/1075 | N122: 88 | O122: 262
A123: 15 | B123: Malawi | C123: 1100 | D123: 340 | E123: 340 | J123: 1076/1075 | K123: 159 | L123: 181 | M123: 1073/1075 | N123: 88 | O123: 252
A124: 16 | B124: Marokko | C124: 1800 | D124: 540 | E124: 540 | J124: 1076/1075 | K124: 159 | L124: 381 | M124: 1073/1075 | N124: 88 | O124: 452
A125: 17 | B125: Mauritius | C125: 1150 | D125: 570 | E125: 570 | J125: 1076/1075 | K125: 159 | L125: 411 | M125: 1073/1075 | N125: 88 | O125: 482
A126: 18 | B126: Mosambik | C126: 2100 | D126: 410 | E126: 410 | J126: 1076/1075 | K126: 159 | L126: 251 | M126: 1073/1075 | N126: 88 | O126: 322
A127: 19 | B127: Namibia | C127: 1350 | D127: 420 | E127: 420 | J127: 1076/1075 | K127: 159 | L127: 261 | M127: 1073/1075 | N127: 88 | O127: 332
A128: 20 | B128: Nigeria | C128: 3200 | D128: 680 | E128: 680 | J128: 1076/1075 | K128: 159 | L128: 521 | M128: 1073/1075 | N128: 88 | O128: 592
A129: 21 | B129: Seychellene | C129: 2500 | D129: 750 | E129: 750 | J129: 1076/1075 | K129: 159 | L129: 591 | M129: 1073/1075 | N129: 88 | O129: 662
A130: 22 | B130: Sudan | C130: 1750 | D130: 660 | E130: 660 | J130: 1076/1075 | K130: 159 | L130: 501 | M130: 1073/1075 | N130: 88 | O130: 572
A131: 23 | B131: Swasiland | C131: 1100 | D131: 360 | E131: 360 | J131: 1076/1075 | K131: 159 | L131: 201 | M131: 1073/1075 | N131: 88 | O131: 272
A132: 24 | B132: Sør-Afrika | C132: 2500 | D132: 440 | E132: 440 | J132: 1076/1075 | K132: 159 | L132: 281 | M132: 1073/1075 | N132: 88 | O132: 352
B133: Sør-Sudan | C133: 1900 | D133: 350 | E133: 350 | J133: 1076/1075 | K133: 159 | L133: 191 | M133: 1073/1075 | N133: 88 | O133: 262
A134: 25 | B134: Tanzania | C134: 1950 | D134: 520 | E134: 520 | J134: 1076/1075 | K134: 159 | L134: 361 | M134: 1073/1075 | N134: 88 | O134: 432
A135: 26 | B135: Togo | C135: 1000 | D135: 610 | E135: 610 | J135: 1076/1075 | K135: 159 | L135: 451 | M135: 1073/1075 | N135: 88 | O135: 522
A136: 27 | B136: Zambia | C136: 1350 | D136: 570 | E136: 570 | J136: 1076/1075 | K136: 159 | L136: 411 | M136: 1073/1075 | N136: 88 | O136: 482
A137: 28 | B137: Zimbabwe | C137: 1300 | D137: 740 | E137: 740 | J137: 1076/1075 | K137: 159 | L137: 581 | M137: 1073/1075 | N137: 88 | O137: 652
A138: 29 | B138: Øvrige områder | C138: 1700 | D138: 580 | E138: 580 | J138: 1076/1075 | K138: 159 | L138: 421 | M138: 1073/1075 | N138: 88 | O138: 492
A139: 30 | B139: Amerika: | J139: 1076/1075 | K139: 159 | L139: -159 | M139: 1073/1075 | N139: 88 | O139: -88
A140: 31 | B140: Argentina | C140: 1600 | D140: 710 | E140: 710 | J140: 1076/1075 | K140: 159 | L140: 551 | M140: 1073/1075 | N140: 88 | O140: 622
A141: 32 | B141: Bahamas | C141: 2000 | D141: 1150 | E141: 1150 | J141: 1076/1075 | K141: 159 | L141: 991 | M141: 1073/1075 | N141: 88 | O141: 1062
B142: Barbados | C142: 1450 | D142: 1070 | E142: 1070 | J142: 1076/1075 | K142: 159 | L142: 911 | M142: 1073/1075 | N142: 88 | O142: 982
A143: 33 | B143: Bolivia | C143: 650 | D143: 430 | E143: 430 | J143: 1076/1075 | K143: 159 | L143: 271 | M143: 1073/1075 | N143: 88 | O143: 342
A144: 34 | B144: Brasil | C144: 2200 | D144: 640 | E144: 640 | J144: 1076/1075 | K144: 159 | L144: 481 | M144: 1073/1075 | N144: 88 | O144: 552
A145: 35 | B145: Rio de Janeiro | C145: 3000 | D145: 720 | E145: 720 | J145: 1076/1075 | K145: 159 | L145: 561 | M145: 1073/1075 | N145: 88 | O145: 632
A146: 36 | B146: Canada | C146: 2300 | D146: 790 | E146: 790 | J146: 1076/1075 | K146: 159 | L146: 631 | M146: 1073/1075 | N146: 88 | O146: 702
A147: 37 | B147: Chile | C147: 1500 | D147: 590 | E147: 590 | J147: 1076/1075 | K147: 159 | L147: 431 | M147: 1073/1075 | N147: 88 | O147: 502
A148: 38 | B148: Colombia | C148: 2000 | D148: 550 | E148: 550 | J148: 1076/1075 | K148: 159 | L148: 391 | M148: 1073/1075 | N148: 88 | O148: 462
A149: 39 | B149: Costa Rica | C149: 1000 | D149: 650 | E149: 650 | J149: 1076/1075 | K149: 159 | L149: 491 | M149: 1073/1075 | N149: 88 | O149: 562
A150: 40 | B150: Cuba | C150: 1100 | D150: 570 | E150: 570 | J150: 1076/1075 | K150: 159 | L150: 411 | M150: 1073/1075 | N150: 88 | O150: 482
A151: 42 | B151: El Salvador | C151: 1000 | D151: 600 | E151: 600 | J151: 1076/1075 | K151: 159 | L151: 441 | M151: 1073/1075 | N151: 88 | O151: 512
A152: 44 | B152: Guatemala | C152: 1100 | D152: 720 | E152: 720 | J152: 1076/1075 | K152: 159 | L152: 561 | M152: 1073/1075 | N152: 88 | O152: 632
A153: 45 | B153: Guyana | C153: 1200 | D153: 690 | E153: 690 | J153: 1076/1075 | K153: 159 | L153: =D153-K153 -> 531 | M153: 1073/1075 | N153: 88 | O153: =D153-N153 -> 602
A154: 47 | B154: Honduras | C154: 1200 | D154: 490 | E154: 490 | J154: 1076/1075 | K154: 159 | L154: 331 | M154: 1073/1075 | N154: 88 | O154: 402
B155: Jamaica | C155: 1200 | D155: 700 | E155: 700 | J155: 1076/1075 | K155: 159 | L155: 541 | M155: 1073/1075 | N155: 88 | O155: 612
A156: 48 | B156: Mexico | C156: 2200 | D156: 480 | E156: 480 | J156: 1076/1075 | K156: 159 | L156: 321 | M156: 1073/1075 | N156: 88 | O156: 392
A157: 49 | B157: Nicaragua | C157: 1200 | D157: 530 | E157: 530 | J157: 1076/1075 | K157: 159 | L157: 371 | M157: 1073/1075 | N157: 88 | O157: 442
A158: 50 | B158: Panama | C158: 1400 | D158: 650 | E158: 650 | J158: 1076/1075 | K158: 159 | L158: 491 | M158: 1073/1075 | N158: 88 | O158: 562
A159: 51 | B159: Paraguay | C159: 1200 | D159: 460 | E159: 460 | J159: 1076/1075 | K159: 159 | L159: 301 | M159: 1073/1075 | N159: 88 | O159: 372
A160: 52 | B160: Peru | C160: 1500 | D160: 680 | E160: 680 | J160: 1076/1075 | K160: 159 | L160: 521 | M160: 1073/1075 | N160: 88 | O160: 592
A161: 53 | B161: Puerto Rico | C161: 1200 | D161: 890 | E161: 890 | J161: 1076/1075 | K161: 159 | L161: 731 | M161: 1073/1075 | N161: 88 | O161: 802
A162: 54 | B162: Surinam | C162: 1000 | D162: 460 | E162: 460 | J162: 1076/1075 | K162: 159 | L162: 301 | M162: 1073/1075 | N162: 88 | O162: 372
A163: 55 | B163: Uruguay | C163: 1350 | D163: 750 | E163: 750 | J163: 1076/1075 | K163: 159 | L163: 591 | M163: 1073/1075 | N163: 88 | O163: 662
A164: 56 | B164: USA | C164: 1750 | D164: 870 | E164: 870 | J164: 1076/1075 | K164: 159 | L164: 711 | M164: 1073/1075 | N164: 88 | O164: 782
A165: 57 | B165: New York | C165: 3000 | D165: 1170 | E165: 1170 | J165: 1076/1075 | K165: 159 | L165: 1011 | M165: 1073/1075 | N165: 88 | O165: 1082
B166: San Francisco | C166: 2000 | D166: 980 | E166: 980 | J166: 1076/1075 | K166: 159 | L166: 821 | M166: 1073/1075 | N166: 88 | O166: 892
A167: 58 | B167: Washington DC | C167: 3100 | D167: 990 | E167: 990 | J167: 1076/1075 | K167: 159 | L167: 831 | M167: 1073/1075 | N167: 88 | O167: 902
A168: 59 | B168: Venezuela | C168: 2400 | D168: 1600 | E168: 1600 | J168: 1076/1075 | K168: 159 | L168: 1441 | M168: 1073/1075 | N168: 88 | O168: 1512
A169: 60 | B169: Øvrige områder | C169: 1700 | D169: 740 | E169: 740 | J169: 1076/1075 | K169: 159 | L169: 581 | M169: 1073/1075 | N169: 88 | O169: 652
A170: 61 | B170: Asia: | J170: 1076/1075 | K170: 159 | L170: -159 | M170: 1073/1075 | N170: 88 | O170: -88
A171: 62 | B171: Afghanistan | C171: 2300 | D171: 580 | E171: 580 | J171: 1076/1075 | K171: 159 | L171: 421 | M171: 1073/1075 | N171: 88 | O171: 492
A172: 63 | B172: Armenia | C172: 1400 | D172: 470 | E172: 470 | J172: 1076/1075 | K172: 159 | L172: 311 | M172: 1073/1075 | N172: 88 | O172: 382
A173: 64 | B173: Aserbajdsjan | C173: 2650 | D173: 500 | E173: 500 | J173: 1076/1075 | K173: 159 | L173: 341 | M173: 1073/1075 | N173: 88 | O173: 412
A174: 65 | B174: Bahrain | C174: 1650 | D174: 820 | E174: 820 | J174: 1076/1075 | K174: 159 | L174: 661 | M174: 1073/1075 | N174: 88 | O174: 732
A175: 66 | B175: Bangladesh | C175: 3000 | D175: 560 | E175: 560 | J175: 1076/1075 | K175: 159 | L175: 401 | M175: 1073/1075 | N175: 88 | O175: 472
A176: 67 | B176: Brunei | C176: 1000 | D176: 510 | E176: 510 | J176: 1076/1075 | K176: 159 | L176: 351 | M176: 1073/1075 | N176: 88 | O176: 422
A177: 69 | B177: Filippinene | C177: 2100 | D177: 580 | E177: 580 | J177: 1076/1075 | K177: 159 | L177: 421 | M177: 1073/1075 | N177: 88 | O177: 492
A178: 70 | B178: Forente arabiske emirater | C178: 1700 | D178: 1000 | E178: 1000 | J178: 1076/1075 | K178: 159 | L178: 841 | M178: 1073/1075 | N178: 88 | O178: 912
A179: 71 | B179: Georgia | C179: 2200 | D179: 390 | E179: 390 | J179: 1076/1075 | K179: 159 | L179: 231 | M179: 1073/1075 | N179: 88 | O179: 302
A180: 72 | B180: India | C180: 1700 | D180: 520 | E180: 520 | J180: 1076/1075 | K180: 159 | L180: 361 | M180: 1073/1075 | N180: 88 | O180: 432
A181: 74 | B181: Indonesia | C181: 2600 | D181: 550 | E181: 550 | J181: 1076/1075 | K181: 159 | L181: 391 | M181: 1073/1075 | N181: 88 | O181: 462
A182: 75 | B182: Iran | C182: 1600 | D182: 630 | E182: 630 | J182: 1076/1075 | K182: 159 | L182: 471 | M182: 1073/1075 | N182: 88 | O182: 542
A183: 76 | B183: Israel | C183: 2900 | D183: 1170 | E183: 1170 | J183: 1076/1075 | K183: 159 | L183: 1011 | M183: 1073/1075 | N183: 88 | O183: 1082
A184: 78 | B184: Japan | C184: 2200 | D184: 770 | E184: 770 | J184: 1076/1075 | K184: 159 | L184: 611 | M184: 1073/1075 | N184: 88 | O184: 682
B185: Jemen | C185: 1200 | D185: 580 | E185: 580 | J185: 1076/1075 | K185: 159 | L185: =D185-K185 -> 421 | M185: 1073/1075 | N185: 88 | O185: =D185-N185 -> 492
A186: 79 | B186: Jordan | C186: 2800 | D186: 910 | E186: 910 | J186: 1076/1075 | K186: 159 | L186: 751 | M186: 1073/1075 | N186: 88 | O186: 822
A187: 80 | B187: Kambodsja | C187: 1650 | D187: 570 | E187: 570 | J187: 1076/1075 | K187: 159 | L187: 411 | M187: 1073/1075 | N187: 88 | O187: 482
A188: 81 | B188: Kasakhstan | C188: 1750 | D188: 450 | E188: 450 | J188: 1076/1075 | K188: 159 | L188: 291 | M188: 1073/1075 | N188: 88 | O188: 362
A189: 82 | B189: Kina | C189: 2000 | D189: 750 | E189: 750 | J189: 1076/1075 | K189: 159 | L189: 591 | M189: 1073/1075 | N189: 88 | O189: 662
A190: 83 | B190: Hong Kong | C190: 3100 | D190: 920 | E190: 920 | J190: 1076/1075 | K190: 159 | L190: 761 | M190: 1073/1075 | N190: 88 | O190: 832
A191: 84 | B191: Shanghai | C191: 2400 | D191: 810 | E191: 810 | J191: 1076/1075 | K191: 159 | L191: 651 | M191: 1073/1075 | N191: 88 | O191: 722
A192: 85 | B192: Kuwait | C192: 1700 | D192: 900 | E192: 900 | J192: 1076/1075 | K192: 159 | L192: 741 | M192: 1073/1075 | N192: 88 | O192: 812
A193: 87 | B193: Laos | C193: 1500 | D193: 470 | E193: 470 | J193: 1076/1075 | K193: 159 | L193: 311 | M193: 1073/1075 | N193: 88 | O193: 382
A194: 88 | B194: Libanon | C194: 2200 | D194: 910 | E194: 910 | J194: 1076/1075 | K194: 159 | L194: 751 | M194: 1073/1075 | N194: 88 | O194: 822
A195: 89 | B195: Malaysia | C195: 1400 | D195: 420 | E195: 420 | J195: 1076/1075 | K195: 159 | L195: 261 | M195: 1073/1075 | N195: 88 | O195: 332
A196: 90 | B196: Maldivene | C196: 3000 | D196: 490 | E196: 490 | J196: 1076/1075 | K196: 159 | L196: 331 | M196: 1073/1075 | N196: 88 | O196: 402
A197: 91 | B197: Myanmar (Burma) | C197: 1700 | D197: 500 | E197: 500 | J197: 1076/1075 | K197: 159 | L197: 341 | M197: 1073/1075 | N197: 88 | O197: 412
A198: 93 | B198: Nord-Korea | C198: 1000 | D198: 520 | E198: 520 | J198: 1076/1075 | K198: 159 | L198: 361 | M198: 1073/1075 | N198: 88 | O198: 432
A199: 94 | B199: Oman | C199: 2700 | D199: 980 | E199: 980 | J199: 1076/1075 | K199: 159 | L199: 821 | M199: 1073/1075 | N199: 88 | O199: 892
A200: 95 | B200: Pakistan | C200: 2100 | D200: 440 | E200: 440 | J200: 1076/1075 | K200: 159 | L200: 281 | M200: 1073/1075 | N200: 88 | O200: 352
B201: Palestina | C201: 1400 | D201: 920 | E201: 920 | J201: 1076/1075 | K201: 159 | L201: 761 | M201: 1073/1075 | N201: 88 | O201: 832
A202: 96 | B202: Qatar | C202: 1600 | D202: 920 | E202: 920 | J202: 1076/1075 | K202: 159 | L202: 761 | M202: 1073/1075 | N202: 88 | O202: 832
A203: 97 | B203: Saudi-Arabia | C203: 2700 | D203: 790 | E203: 790 | J203: 1076/1075 | K203: 159 | L203: 631 | M203: 1073/1075 | N203: 88 | O203: 702
A204: 98 | B204: Singapore | C204: 3250 | D204: 810 | E204: 810 | J204: 1076/1075 | K204: 159 | L204: 651 | M204: 1073/1075 | N204: 88 | O204: 722
A205: 99 | B205: Sri Lanka | C205: 1200 | D205: 440 | E205: 440 | J205: 1076/1075 | K205: 159 | L205: 281 | M205: 1073/1075 | N205: 88 | O205: 352
A206: 101 | B206: Sør-Korea | C206: 2000 | D206: 880 | E206: 880 | J206: 1076/1075 | K206: 159 | L206: 721 | M206: 1073/1075 | N206: 88 | O206: 792
A207: 103 | B207: Taiwan | C207: 2700 | D207: 680 | E207: 680 | J207: 1076/1075 | K207: 159 | L207: 521 | M207: 1073/1075 | N207: 88 | O207: 592
... 28 more rows

Sheet D (hidden)

Sheet Info (hidden)
B3: Hvordan korrigere satser, ev. skattefrie beløp
A5: Beskyttelse | B5: Regneboken som ligger ute er beskyttet mot endring i låste felt
B6: Beskyttelsen må tas av (se makro for reiseregning)
A8: C-arket | B8: Alle satser som skal oppdateres korrigeres på side C (reiser, kjøregodtgjørelse mm)
B9: Alle formler henviser til sater i dette regnearket, så når det er oppdatert her skal det være oppdatert i hele regnearket
A11: B-arket | B11: Satser og formler for beregninger ligger også i B-arket
B12: Disse er skjult og må vises vha Vis-kommando
B13: Marker start og slutt på kolonner som er skjult, høyre-klikk og velg vis
B14: Beregner korrekt kjøregodkjørelse og plukklister for valg i listebokser
A16: Datavalidering | B16: Plukklistene er satt på vha Datavalidering
B17: Marker området hvor det står listebokser, Velg Data på filmenyen
B18: Da finner du verktøyet "Datavalidering" på dette båndet (se bilde)
A20: A-arket | B20: Dette arket inneholder også skjulte kolonner til venstre og høyre i skjemaet
B21: Disse er skjult og må vises vha Vis-kommando
B22: Beregner korrekt kostgodtgjørelse mm
A28: Før ark legges | B28: Sett på arkbeskyttelse
A29: på web | B29: Test at regnearket fungerer som det skal
